fUST/lending_fUST_20251219
["ID","MTS","AMOUNT","RATE_DAILY","PERIOD"]
[399167160,1766130697433,-524.88,0.00058356,120]
[399167161,1766130697442,-500.0,0.00058356,120]
[399167162,1766130697451,-696.02,0.00058356,120]
[399167163,1766130697460,-1278.98,0.00058356,120]
[399167164,1766130697473,-848.2,0.00058356,120]
[399167165,1766130697482,-682.7,0.00058356,120]
[399167166,1766130697491,-1176.57,0.00058356,120]
[399167167,1766130697501,-500.0,0.00058356,120]
[399167168,1766130697510,-500.0,0.00058356,120]
[399167169,1766130697519,-628.56,0.00058356,120]
[399167170,1766130697528,-1384.97,0.00058356,120]
[399167171,1766130697537,-500.0,0.00058356,120]
[399167172,1766130697547,-1052.14,0.00058356,120]
[399167173,1766130697556,-513.39738553,0.00058356,120]
[399167174,1766130697565,-212.15270776,0.00058356,120]
[399167175,1766130697574,-235.5480953,0.00058356,120]
[399167176,1766130697583,-1084.45,0.00058356,120]
[399167177,1766130697592,-898.43,0.00058356,120]
[399167178,1766130697601,-500.0,0.00058356,120]
[399167179,1766130697611,-500.0,0.00058356,30]
[399167180,1766130697620,-841.83,0.00058356,120]
[399167181,1766130697629,-500.0,0.00058356,120]
[399167182,1766130697638,-500.0,0.00058356,120]
[399167183,1766130697649,-500.0,0.00058356,120]
[399167184,1766130697659,-500.0,0.00058356,120]
[399167185,1766130697668,-1049.58,0.00058356,120]
[399167186,1766130697678,-482.76,0.00058356,120]
[399167187,1766130697687,-5832.94,0.00058356,120]
[399167188,1766130697696,-500.0,0.00058356,120]
[399167189,1766130697705,-500.0,0.00058356,120]
[399167190,1766130697714,-1123.95,0.00058356,120]
[399167191,1766130697734,-500.0,0.00058356,120]
[399167192,1766130697756,-500.0,0.00058356,120]
[399167193,1766130697775,-500.0,0.00058356,120]
[399167194,1766130697784,-799.69,0.00058356,21]
[399167195,1766130697793,-565.42,0.00058356,120]
[399167196,1766130697802,-500.0,0.00058356,120]
[399167197,1766130697811,-513.90176925,0.00058356,120]
[399167198,1766130697820,-1745.65,0.00058356,120]
[399167199,1766130697830,-1000.0,0.00058356,120]
[399167200,1766130697839,-833.05,0.00058356,120]
[399167201,1766130697850,-501.72,0.00058356,120]
[399167202,1766130697859,-500.0,0.00058356,120]
[399167203,1766130697867,-861.29,0.00058356,120]
[399167204,1766130697876,-433.54939238,0.00058356,120]
[399167205,1766130697885,-4150.56,0.00058356,120]
[399167206,1766130697894,-500.0,0.00058356,120]
[399167207,1766130697903,-500.0,0.00058356,120]
[399167208,1766130697915,-500.0,0.00058356,120]
[399167209,1766130697925,-1545.59,0.00058356,120]
[399167210,1766130697934,-601.18,0.00058356,120]
[399167211,1766130697944,-500.0,0.00058356,120]
[399167212,1766130697953,-3273.78,0.00058356,120]
[399167213,1766130697963,-2163.92,0.00058356,120]
[399167214,1766130697972,-615.54,0.00058356,120]
[399167215,1766130697982,-2441.66,0.00058356,3]
[399167216,1766130697992,-500.0,0.00058356,120]
[399167217,1766130698003,-535.83,0.00058356,120]
[399167218,1766130698012,-970.05,0.00058356,120]
[399167219,1766130698022,-1307.75,0.00058356,120]
[399167220,1766130698031,-529.54,0.00058356,120]
[399167221,1766130698041,-500.0,0.00058356,120]
[399167222,1766130698051,-619.49,0.00058356,120]
[399167223,1766130698060,-2004.58,0.00058356,120]
[399167224,1766130698069,-555.38,0.00058356,120]
[399167225,1766130698079,-570.98,0.00058356,120]
[399167226,1766130698088,-617.64,0.00058356,120]
[399167227,1766130698097,-500.0,0.00058356,120]
[399167228,1766130698106,-708.43,0.00058356,120]
[399167229,1766130698115,-500.0,0.00058356,120]
[399167230,1766130698124,-756.93,0.00058356,120]
[399167231,1766130698133,-1547.5,0.00058356,120]
[399167232,1766130698143,-564.73,0.00058356,120]
[399167233,1766130698153,-788.22,0.00058356,120]
[399167234,1766130698258,-500.0,0.00058356,120]
[399167235,1766130698268,-477.93530678,0.00058356,120]
[399167236,1766130698278,-500.0,0.00058356,120]
[399167237,1766130698287,-1289.84,0.00058356,120]
[399167238,1766130698297,-199.37000526,0.00058384,2]
[399167239,1766130698306,-182.51988463,0.00058384,2]
[399167240,1766130698315,-157.31006515,0.00058601,2]
[399167241,1766130698324,-250.0,0.00058604,120]
[399167242,1766130698333,-1112.0,0.00058604,120]
[399167243,1766130698343,-250.0,0.00058604,120]
[399167244,1766130698352,-500.0,0.00058604,120]
[399167245,1766130698361,-445.202766,0.00058604,120]
[399167246,1766130698370,-250.0,0.00058604,120]
[399167247,1766130698379,-780.17,0.0005863,120]
[399167248,1766130698388,-500.0,0.0005863,7]
[399167249,1766130698398,-500.0,0.0005863,120]
[399167250,1766130698407,-527.64,0.0005863,120]
[399167251,1766130698416,-808.56,0.0005863,120]
[399167252,1766130698425,-500.0,0.0005863,120]
[399167253,1766130698435,-3828.03,0.0005863,120]
[399167254,1766130698445,-500.0,0.0005863,120]
[399167255,1766130698455,-1164.05,0.0005863,120]
[399167256,1766130698465,-500.0,0.0005863,120]
[399167257,1766130698474,-538.52,0.0005863,120]
[399167258,1766130698483,-1789.97,0.0005863,120]
[399167259,1766130698492,-512.97,0.0005863,120]
[399167260,1766130698502,-500.0,0.0005863,120]
[399167261,1766130698511,-500.0,0.0005863,120]
[399167262,1766130698520,-1954.53,0.0005863,120]
[399167263,1766130698530,-500.0,0.0005863,120]
[399167264,1766130698540,-1050.87,0.0005863,120]
[399167265,1766130698550,-3817.38,0.0005863,120]
[399167266,1766130698560,-500.0,0.0005863,120]
[399167267,1766130698569,-500.0,0.0005863,120]
[399167268,1766130698579,-500.0,0.0005863,30]
[399167269,1766130698589,-1315.23,0.0005863,120]
[399167270,1766130698598,-181.0130836,0.0005863,120]
[399167271,1766130698606,-206.30976746,0.0005863,120]
[399167272,1766130698616,-1071.88,0.0005863,120]
[399167273,1766130698626,-510.06040567,0.0005863,120]
[399167274,1766130698635,-500.0,0.0005863,120]
[399167275,1766130698644,-500.0,0.0005863,120]
[399167276,1766130698656,-500.0,0.0005863,120]
[399167277,1766130698666,-524.88,0.0005863,120]
[399167278,1766130698676,-500.0,0.0005863,120]
[399167279,1766130698685,-696.02,0.0005863,120]
[399167280,1766130698695,-1278.98,0.0005863,120]
[399167281,1766130698703,-848.2,0.0005863,120]
[399167282,1766130698713,-682.7,0.0005863,120]
[399167283,1766130698723,-1176.57,0.0005863,120]
[399167284,1766130698733,-508.96526851,0.0005863,120]
[399167285,1766130698742,-500.0,0.0005863,120]
[399167286,1766130698752,-628.56,0.0005863,120]
[399167287,1766130698761,-1384.97,0.0005863,120]
[399167288,1766130698771,-500.0,0.0005863,120]
[399167289,1766130698780,-1052.14,0.0005863,120]
[399167290,1766130698791,-1084.45,0.0005863,120]
[399167291,1766130698801,-898.43,0.0005863,120]
[399167292,1766130698810,-593.30040516,0.0005863,120]
[399167293,1766130698820,-841.83,0.0005863,120]
[399167294,1766130698829,-500.0,0.0005863,30]
[399167295,1766130698838,-500.0,0.0005863,120]
[399167296,1766130698848,-500.0,0.0005863,120]
[399167297,1766130698857,-500.0,0.0005863,120]
[399167298,1766130698867,-355.51638516,0.0005863,120]
[399167299,1766130698877,-1049.58,0.0005863,120]
[399167300,1766130698886,-5832.94,0.0005863,120]
[399167301,1766130698895,-500.0,0.0005863,120]
[399167302,1766130698904,-500.0,0.0005863,120]
[399167303,1766130698914,-1123.95,0.0005863,120]
[399167304,1766130698924,-500.0,0.0005863,120]
[399167305,1766130698932,-270.53048055,0.0005863,120]
[399167306,1766130698942,-799.69,0.0005863,21]
[399167307,1766130698954,-565.42,0.0005863,120]
[399167308,1766130698963,-500.0,0.0005863,120]
[399167309,1766130698973,-1745.65,0.0005863,120]
[399167310,1766130698982,-1000.0,0.0005863,120]
[399167311,1766130698991,-833.05,0.0005863,120]
[399167312,1766130699001,-501.72,0.0005863,120]
[399167313,1766130699010,-500.0,0.0005863,120]
[399167314,1766130699024,-861.29,0.0005863,120]
[399167315,1766130699043,-4150.56,0.0005863,120]
[399167316,1766130699059,-210.38677582,0.0005863,120]
[399167317,1766130699080,-500.0,0.0005863,120]
[399167318,1766130699099,-500.0,0.0005863,120]
[399167319,1766130699116,-1545.59,0.0005863,120]
[399167320,1766130699133,-601.18,0.0005863,120]
[399167321,1766130699151,-500.0,0.0005863,120]
[399167322,1766130699166,-3273.78,0.0005863,120]
[399167323,1766130699186,-2163.92,0.0005863,120]
[399167324,1766130699205,-615.54,0.0005863,120]
[399167325,1766130699222,-2441.66,0.0005863,3]
[399167326,1766130699238,-500.0,0.0005863,120]
[399167327,1766130699255,-535.83,0.0005863,120]
[399167328,1766130699271,-970.05,0.0005863,120]
[399167329,1766130699288,-1307.75,0.0005863,120]
[399167330,1766130699301,-529.54,0.0005863,120]
[399167331,1766130699318,-500.0,0.0005863,120]
[399167332,1766130699333,-619.49,0.0005863,120]
[399167333,1766130699348,-2004.58,0.0005863,120]
[399167334,1766130699364,-555.38,0.0005863,120]
[399167335,1766130699379,-570.98,0.0005863,120]
[399167336,1766130699394,-617.64,0.0005863,120]
[399167337,1766130699409,-500.0,0.0005863,120]
[399167338,1766130699423,-708.43,0.0005863,120]
[399167339,1766130699439,-500.0,0.0005863,120]
[399167340,1766130699453,-756.93,0.0005863,120]
[399167341,1766130699468,-1547.5,0.0005863,120]
[399167342,1766130699483,-564.73,0.0005863,120]
[399167343,1766130699497,-788.22,0.0005863,120]
[399167344,1766130699512,-500.0,0.0005863,120]
[399167345,1766130699529,-500.0,0.0005863,120]
[399167346,1766130699544,-1289.84,0.0005863,120]
[399167347,1766130699559,-500.0,0.0005863,120]
[399167348,1766130699574,-254.45955725,0.00058682,2]
[399167349,1766130699591,-156.95575221,0.0005878,2]
[399167350,1766130699606,-3790.91465687,0.00058875,60]
[399167351,1766130699621,-257.67734784,0.00058878,120]
[399167352,1766130699634,-250.0,0.00058878,120]
[399167353,1766130699649,-1112.0,0.00058878,120]
[399167354,1766130699664,-250.0,0.00058878,120]
[399167355,1766130699678,-500.0,0.00058878,120]
[399167356,1766130699692,-429.318,0.00058878,120]
[399167357,1766130699705,-250.0,0.00058878,120]
[399167358,1766130699720,-205.02274369,0.00058879,30]
[399167359,1766130699735,-250.0,0.00058879,30]
[399167360,1766130699749,-250.0,0.00058879,30]
[399167361,1766130699763,-1112.0,0.00058879,30]
[399167362,1766130699778,-250.0,0.00058879,30]
[399167363,1766130699791,-500.0,0.00058879,30]
[399167364,1766130699808,-414.0,0.00058879,30]
[399167365,1766130699821,-155.3984166,0.00058879,30]
[399167366,1766130699834,-700.0,0.00058879,30]
[399167367,1766130699848,-250.0,0.00058879,30]
[399167368,1766130699861,-780.17,0.00058904,120]
[399167369,1766130699874,-355.44862098,0.00058904,7]
[399167370,1766130699888,-500.0,0.00058904,120]
[399167371,1766130699902,-527.64,0.00058904,120]
[399167372,1766130699915,-808.56,0.00058904,120]
[399167373,1766130699928,-324.3615638,0.00058904,120]
[399167374,1766130699941,-3828.03,0.00058904,120]
[399167375,1766130699954,-500.0,0.00058904,120]
[399167376,1766130699967,-1164.05,0.00058904,120]
[399167377,1766130699980,-500.0,0.00058904,120]
[399167378,1766130699993,-538.52,0.00058904,120]
[399167379,1766130700007,-1789.97,0.00058904,120]
[399167380,1766130700021,-512.97,0.00058904,120]
[399167381,1766130700035,-500.0,0.00058904,120]
[399167382,1766130700048,-500.0,0.00058904,120]
[399167383,1766130700062,-1954.53,0.00058904,120]
[399167384,1766130700076,-500.0,0.00058904,120]
[399167385,1766130700089,-1050.87,0.00058904,120]
[399167386,1766130700103,-3817.38,0.00058904,120]
[399167387,1766130700117,-500.0,0.00058904,120]
[399167388,1766130700131,-500.0,0.00058904,120]
[399167389,1766130700145,-500.0,0.00058904,30]
[399167390,1766130700159,-1315.23,0.00058904,120]
[399167391,1766130700173,-1071.88,0.00058904,120]
[399167392,1766130700187,-500.0,0.00058904,120]
[399167393,1766130700343,-500.0,0.00058904,120]
[399167394,1766130700353,-500.0,0.00058904,120]
[399167395,1766130700362,-524.88,0.00058904,120]
[399167396,1766130700374,-500.0,0.00058904,120]
[399167397,1766130700384,-696.02,0.00058904,120]
[399167398,1766130700394,-1278.98,0.00058904,120]
[399167399,1766130700403,-848.2,0.00058904,120]
[399167400,1766130700412,-682.7,0.00058904,120]
[399167401,1766130700423,-1176.57,0.00058904,120]
[399167402,1766130700434,-500.0,0.00058904,120]
[399167403,1766130700443,-628.56,0.00058904,120]
[399167404,1766130700451,-1384.97,0.00058904,120]
[399167405,1766130700460,-500.0,0.00058904,120]
[399167406,1766130700470,-1052.14,0.00058904,120]
[399167407,1766130700479,-1084.45,0.00058904,120]
[399167408,1766130700488,-898.43,0.00058904,120]
[399167409,1766130700497,-841.83,0.00058904,120]
[399167410,1766130700506,-500.0,0.00058904,120]
[399167411,1766130700515,-500.0,0.00058904,30]
[399167412,1766130700525,-500.0,0.00058904,120]
[399167413,1766130700535,-427.77196078,0.00058904,120]
[399167414,1766130700544,-1049.58,0.00058904,120]
[399167415,1766130700553,-5832.94,0.00058904,120]
[399167416,1766130700562,-500.0,0.00058904,120]
[399167417,1766130700571,-500.0,0.00058904,120]
[399167418,1766130700580,-1123.95,0.00058904,120]
[399167419,1766130700589,-500.0,0.00058904,120]
[399167420,1766130700599,-799.69,0.00058904,21]
[399167421,1766130700608,-565.42,0.00058904,120]
[399167422,1766130700619,-500.0,0.00058904,120]
[399167423,1766130700629,-1745.65,0.00058904,120]
[399167424,1766130700639,-1000.0,0.00058904,120]
[399167425,1766130700649,-833.05,0.00058904,120]
[399167426,1766130700661,-501.72,0.00058904,120]
[399167427,1766130700670,-467.69214075,0.00058904,120]
[399167428,1766130700680,-861.29,0.00058904,120]
[399167429,1766130700690,-4150.56,0.00058904,120]
[399167430,1766130700701,-500.0,0.00058904,120]
[399167431,1766130700712,-500.0,0.00058904,120]
[399167432,1766130700723,-1545.59,0.00058904,120]
[399167433,1766130700733,-601.18,0.00058904,120]
[399167434,1766130700742,-500.0,0.00058904,120]
[399167435,1766130700751,-3273.78,0.00058904,120]
[399167436,1766130700760,-2163.92,0.00058904,120]
[399167437,1766130700769,-615.54,0.00058904,120]
[399167438,1766130700779,-2441.66,0.00058904,3]
[399167439,1766130700788,-500.0,0.00058904,120]
[399167440,1766130700797,-535.83,0.00058904,120]
[399167441,1766130700807,-970.05,0.00058904,120]
[399167442,1766130700816,-1307.75,0.00058904,120]
[399167443,1766130700824,-529.54,0.00058904,120]
[399167444,1766130700834,-500.0,0.00058904,120]
[399167445,1766130700842,-619.49,0.00058904,120]
[399167446,1766130700852,-2004.58,0.00058904,120]
[399167447,1766130700861,-555.38,0.00058904,120]
[399167448,1766130700871,-570.98,0.00058904,120]
[399167449,1766130700880,-617.64,0.00058904,120]
[399167450,1766130700890,-500.0,0.00058904,120]
[399167451,1766130700899,-708.43,0.00058904,120]
[399167452,1766130700908,-500.0,0.00058904,120]
[399167453,1766130700917,-756.93,0.00058904,120]
[399167454,1766130700927,-1547.5,0.00058904,120]
[399167455,1766130700936,-564.73,0.00058904,120]
[399167456,1766130700945,-788.22,0.00058904,120]
[399167457,1766130700954,-543.05806117,0.00058904,120]
[399167458,1766130700963,-500.0,0.00058904,120]
[399167459,1766130700972,-1289.84,0.00058904,120]
[399167460,1766130700981,-1000.0,0.00059,120]
[399167461,1766130700991,-250000.0,0.00059,120]
[399167462,1766130701000,-319.0,0.00059,120]
[399167463,1766130701010,-150.0,0.00059,120]
[399167464,1766130701026,-346.86543,0.0005912,2]
[399167465,1766130701047,-780.17,0.00059178,120]
[399167466,1766130701063,-500.0,0.00059178,120]
[399167467,1766130701073,-527.64,0.00059178,120]
[399167468,1766130701082,-808.56,0.00059178,120]
[399167469,1766130701093,-3828.03,0.00059178,120]
[399167470,1766130701104,-641.81401253,0.00059178,120]
[399167471,1766130701115,-1164.05,0.00059178,120]
[399167472,1766130701125,-500.0,0.00059178,120]
[399167473,1766130701134,-538.52,0.00059178,120]
[399167474,1766130701144,-1789.97,0.00059178,120]
[399167475,1766130701154,-512.97,0.00059178,120]
[399167476,1766130701164,-500.0,0.00059178,120]
[399167477,1766130701173,-500.0,0.00059178,120]
[399167478,1766130701183,-1954.53,0.00059178,120]
[399167479,1766130701192,-503.8948535,0.00059178,120]
[399167480,1766130701201,-1050.87,0.00059178,120]
[399167481,1766130701210,-3817.38,0.00059178,120]
[399167482,1766130701219,-504.90786564,0.00059178,120]
[399167483,1766130701229,-150.30520774,0.00059178,120]
[399167484,1766130701238,-500.0,0.00059178,30]
[399167485,1766130701248,-1315.23,0.00059178,120]
[399167486,1766130701258,-1071.88,0.00059178,120]
[399167487,1766130701268,-500.0,0.00059178,120]
[399167488,1766130701277,-225.46879466,0.00059178,120]
[399167489,1766130701287,-500.0,0.00059178,120]
[399167490,1766130701297,-524.88,0.00059178,120]
[399167491,1766130701307,-336.89869178,0.00059178,120]
[399167492,1766130701316,-696.02,0.00059178,120]
[399167493,1766130701325,-1278.98,0.00059178,120]
[399167494,1766130701334,-848.2,0.00059178,120]
[399167495,1766130701343,-682.7,0.00059178,120]
[399167496,1766130701352,-1176.57,0.00059178,120]
[399167497,1766130701361,-560.74871222,0.00059178,120]
[399167498,1766130701370,-628.56,0.00059178,120]
[399167499,1766130701379,-1384.97,0.00059178,120]
[399167500,1766130701388,-500.0,0.00059178,120]
[399167501,1766130701397,-1052.14,0.00059178,120]
[399167502,1766130701406,-1084.45,0.00059178,120]
[399167503,1766130701415,-898.43,0.00059178,120]
[399167504,1766130701424,-841.83,0.00059178,120]
[399167505,1766130701433,-500.0,0.00059178,120]
[399167506,1766130701442,-500.0,0.00059178,30]
[399167507,1766130701451,-500.0,0.00059178,120]
[399167508,1766130701460,-1049.58,0.00059178,120]
[399167509,1766130701470,-5832.94,0.00059178,120]
[399167510,1766130701478,-500.0,0.00059178,120]
[399167511,1766130701487,-500.0,0.00059178,120]
[399167512,1766130701496,-1123.95,0.00059178,120]
[399167513,1766130701505,-500.0,0.00059178,120]
[399167514,1766130701514,-799.69,0.00059178,21]
[399167515,1766130701523,-565.42,0.00059178,120]
[399167516,1766130701531,-500.0,0.00059178,120]
[399167517,1766130701541,-1745.65,0.00059178,120]
[399167518,1766130701550,-1000.0,0.00059178,120]
[399167519,1766130701559,-833.05,0.00059178,120]
[399167520,1766130701568,-501.72,0.00059178,120]
[399167521,1766130701577,-861.29,0.00059178,120]
[399167522,1766130701586,-4150.56,0.00059178,120]
[399167523,1766130701595,-500.0,0.00059178,120]
[399167524,1766130701604,-500.0,0.00059178,120]
[399167525,1766130701612,-1545.59,0.00059178,120]
[399167526,1766130701621,-601.18,0.00059178,120]
[399167527,1766130701630,-500.0,0.00059178,120]
[399167528,1766130701639,-3273.78,0.00059178,120]
[399167529,1766130701648,-2163.92,0.00059178,120]
[399167530,1766130701659,-615.54,0.00059178,120]
[399167531,1766130701668,-2441.66,0.00059178,3]
[399167532,1766130701677,-500.0,0.00059178,120]
[399167533,1766130701687,-535.83,0.00059178,120]
[399167534,1766130701696,-970.05,0.00059178,120]
[399167535,1766130701705,-1307.75,0.00059178,120]
[399167536,1766130701714,-529.54,0.00059178,120]
[399167537,1766130701722,-500.0,0.00059178,120]
[399167538,1766130701732,-619.49,0.00059178,120]
[399167539,1766130701741,-2004.58,0.00059178,120]
[399167540,1766130701751,-555.38,0.00059178,120]
[399167541,1766130701762,-570.98,0.00059178,120]
[399167542,1766130701774,-617.64,0.00059178,120]
[399167543,1766130701783,-500.0,0.00059178,120]
[399167544,1766130701793,-708.43,0.00059178,120]
[399167545,1766130701802,-500.0,0.00059178,120]
[399167546,1766130701811,-756.93,0.00059178,120]
[399167547,1766130701820,-1547.5,0.00059178,120]
[399167548,1766130701829,-564.73,0.00059178,120]
[399167549,1766130701838,-788.22,0.00059178,120]
[399167550,1766130701848,-500.0,0.00059178,120]
[399167551,1766130701857,-1289.84,0.00059178,120]
[399167552,1766130701867,-419.42,0.00059178,120]
[399167553,1766130701876,-200.0,0.00059271,120]
[399167554,1766130701887,-254.33751268,0.0005931,7]
[399167555,1766130701898,-299.5891323,0.00059407,2]
[399167556,1766130701908,-900.0,0.00059444,120]
[399167557,1766130701918,-186.96665751,0.00059444,2]
[399167558,1766130701927,-192.80169288,0.00059444,2]
[399167559,1766130701935,-780.17,0.00059452,120]
[399167560,1766130701944,-500.0,0.00059452,120]
[399167561,1766130701954,-527.64,0.00059452,120]
[399167562,1766130701965,-808.56,0.00059452,120]
[399167563,1766130701975,-3828.03,0.00059452,120]
[399167564,1766130701985,-1164.05,0.00059452,120]
[399167565,1766130701994,-500.0,0.00059452,120]
[399167566,1766130702003,-538.52,0.00059452,120]
[399167567,1766130702012,-1789.97,0.00059452,120]
[399167568,1766130702022,-512.97,0.00059452,120]
[399167569,1766130702031,-457.32837958,0.00059452,120]
[399167570,1766130702040,-500.0,0.00059452,120]
[399167571,1766130702050,-1954.53,0.00059452,120]
[399167572,1766130702059,-1050.87,0.00059452,120]
[399167573,1766130702068,-3817.38,0.00059452,120]
[399167574,1766130702077,-500.0,0.00059452,30]
[399167575,1766130702087,-1315.23,0.00059452,120]
[399167576,1766130702194,-1071.88,0.00059452,120]
[399167577,1766130702206,-500.0,0.00059452,120]
[399167578,1766130702215,-500.0,0.00059452,120]
[399167579,1766130702224,-524.88,0.00059452,120]
[399167580,1766130702233,-696.02,0.00059452,120]
[399167581,1766130702242,-1278.98,0.00059452,120]
[399167582,1766130702252,-848.2,0.00059452,120]
[399167583,1766130702261,-682.7,0.00059452,120]
[399167584,1766130702270,-1176.57,0.00059452,120]
[399167585,1766130702279,-628.56,0.00059452,120]
[399167586,1766130702289,-1384.97,0.00059452,120]
[399167587,1766130702298,-500.0,0.00059452,120]
[399167588,1766130702307,-1052.14,0.00059452,120]
[399167589,1766130702316,-1084.45,0.00059452,120]
[399167590,1766130702325,-898.43,0.00059452,120]
[399167591,1766130702335,-841.83,0.00059452,120]
[399167592,1766130702344,-500.0,0.00059452,120]
[399167593,1766130702355,-500.0,0.00059452,30]
[399167594,1766130702365,-500.0,0.00059452,120]
[399167595,1766130702374,-1049.58,0.00059452,120]
[399167596,1766130702383,-5832.94,0.00059452,120]
[399167597,1766130702392,-500.0,0.00059452,120]
[399167598,1766130702401,-209.27661244,0.00059452,120]
[399167599,1766130702411,-1123.95,0.00059452,120]
[399167600,1766130702421,-467.09764347,0.00059452,120]
[399167601,1766130702431,-799.69,0.00059452,21]
[399167602,1766130702442,-565.42,0.00059452,120]
[399167603,1766130702451,-597.98478867,0.00059452,120]
[399167604,1766130702461,-1745.65,0.00059452,120]
[399167605,1766130702471,-1000.0,0.00059452,120]
[399167606,1766130702480,-833.05,0.00059452,120]
[399167607,1766130702489,-501.72,0.00059452,120]
[399167608,1766130702499,-861.29,0.00059452,120]
[399167609,1766130702509,-4150.56,0.00059452,120]
[399167610,1766130702519,-500.0,0.00059452,120]
[399167611,1766130702529,-500.0,0.00059452,120]
[399167612,1766130702538,-1545.59,0.00059452,120]
[399167613,1766130702548,-601.18,0.00059452,120]
[399167614,1766130702558,-500.0,0.00059452,120]
[399167615,1766130702568,-3273.78,0.00059452,120]
[399167616,1766130702578,-2163.92,0.00059452,120]
[399167617,1766130702589,-615.54,0.00059452,120]
[399167618,1766130702598,-2441.66,0.00059452,3]
[399167619,1766130702608,-500.0,0.00059452,120]
[399167620,1766130702617,-535.83,0.00059452,120]
[399167621,1766130702627,-970.05,0.00059452,120]
[399167622,1766130702636,-1307.75,0.00059452,120]
[399167623,1766130702645,-529.54,0.00059452,120]
[399167624,1766130702655,-500.0,0.00059452,120]
[399167625,1766130702664,-619.49,0.00059452,120]
[399167626,1766130702673,-2004.58,0.00059452,120]
[399167627,1766130702682,-555.38,0.00059452,120]
[399167628,1766130702692,-570.98,0.00059452,120]
[399167629,1766130702702,-617.64,0.00059452,120]
[399167630,1766130702712,-500.0,0.00059452,120]
[399167631,1766130702721,-708.43,0.00059452,120]
[399167632,1766130702731,-500.0,0.00059452,120]
[399167633,1766130702740,-756.93,0.00059452,120]
[399167634,1766130702749,-1547.5,0.00059452,120]
[399167635,1766130702757,-564.73,0.00059452,120]
[399167636,1766130702766,-788.22,0.00059452,120]
[399167637,1766130702776,-500.0,0.00059452,120]
[399167638,1766130702785,-1289.84,0.00059452,120]
[399167639,1766130702794,-285.0,0.00059604,120]
[399167640,1766130702803,-780.17,0.00059726,120]
[399167641,1766130702812,-500.0,0.00059726,120]
[399167642,1766130702821,-527.64,0.00059726,120]
[399167643,1766130702830,-808.56,0.00059726,120]
[399167644,1766130702839,-3828.03,0.00059726,120]
[399167645,1766130702848,-1164.05,0.00059726,120]
[399167646,1766130702858,-500.0,0.00059726,120]
[399167647,1766130702867,-538.52,0.00059726,120]
[399167648,1766130702876,-1789.97,0.00059726,120]
[399167649,1766130702885,-512.97,0.00059726,120]
[399167650,1766130702894,-171.53421251,0.00059726,120]
[399167651,1766130702903,-1954.53,0.00059726,120]
[399167652,1766130702912,-3817.38,0.00059726,120]
[399167653,1766130702921,-1050.87,0.00059726,120]
[399167654,1766130702930,-500.0,0.00059726,30]
[399167655,1766130702939,-1315.23,0.00059726,120]
[399167656,1766130702948,-1071.88,0.00059726,120]
[399167657,1766130702957,-500.0,0.00059726,120]
[399167658,1766130702965,-500.0,0.00059726,120]
[399167659,1766130702974,-524.88,0.00059726,120]